[Event "Late Titled Tuesday Blitz February 8 2022"]
[White "Novikova, Galina"]
[Black "Sarkar, Justin"]
[WhiteFideId "4157095"]
[BlackFideId "2010011"]
[WhiteElo "1863"]
[BlackElo "2038"]
[Result "1-0"]
[Round "11"]
[TimeControl "180+1"]
[Date "2022.02.09"]
[WhiteClock "0:01:35"]
[BlackClock "0:00:13"]

1. e4 {[%clk 0:03:00]}  c5 {[%clk 0:02:56]} 2. Nf3 {[%clk 0:03:01]}  d6 {[%clk 0:02:55]} 3. d4 {[%clk 0:03:01]}  cxd4 {[%clk 0:02:55]} 4. Nxd4 {[%clk 0:03:02]}  Nf6 {[%clk 0:02:54]} 5. Nc3 {[%clk 0:03:03]}  a6 {[%clk 0:02:53]} 6. h3 {[%clk 0:03:03]}  e5 {[%clk 0:02:52]} 7. Nde2 {[%clk 0:03:02]}  h5 {[%clk 0:02:51]} 8. g3 {[%clk 0:03:02]}  Be6 {[%clk 0:02:48]} 9. Bg2 {[%clk 0:03:03]}  Nbd7 {[%clk 0:02:41]} 10. Be3 {[%clk 0:03:04]}  b5 {[%clk 0:02:36]} 11. a3 {[%clk 0:03:03]}  Be7 {[%clk 0:02:32]} 12. O-O {[%clk 0:03:03]}  Rc8 {[%clk 0:02:28]} 13. f4 {[%clk 0:03:04]}  h4 {[%clk 0:02:12]} 14. f5 {[%clk 0:03:02]}  Bc4 {[%clk 0:02:11]} 15. g4 {[%clk 0:03:03]}  Nh7 {[%clk 0:02:00]} 16. b3 {[%clk 0:03:02]}  Bxe2 {[%clk 0:01:58]} 17. Nxe2 {[%clk 0:03:03]}  Qc7 {[%clk 0:01:47]} 18. Rc1 {[%clk 0:03:02]}  Bg5 {[%clk 0:01:44]} 19. Qd2 {[%clk 0:03:01]}  Bxe3+ {[%clk 0:01:41]} 20. Qxe3 {[%clk 0:03:02]}  Qc5 {[%clk 0:01:35]} 21. Qxc5 {[%clk 0:03:02]}  Rxc5 {[%clk 0:01:31]} 22. Rfd1 {[%clk 0:03:03]}  Ke7 {[%clk 0:01:28]} 23. Kf2 {[%clk 0:02:58]}  Ng5 {[%clk 0:01:26]} 24. Rd2 {[%clk 0:02:48]}  Rhc8 {[%clk 0:00:35]} 25. Rcd1 {[%clk 0:02:47]}  Nf6 {[%clk 0:00:30]} 26. Ke3 {[%clk 0:02:42]}  Rxc2 {[%clk 0:00:23]} 27. Rxd6 {[%clk 0:02:40]}  R8c6 {[%clk 0:00:19]} 28. Rd8 {[%clk 0:02:31]}  Rb2 {[%clk 0:00:17]} 29. Ra8 {[%clk 0:02:17]}  Rxb3+ {[%clk 0:00:17]} 30. Kf2 {[%clk 0:02:15]}  Nfxe4+ {[%clk 0:00:17]} 31. Kg1 {[%clk 0:02:14]}  Nxh3+ {[%clk 0:00:15]} 32. Kh2 {[%clk 0:02:11]}  Nhf2 {[%clk 0:00:14]} 33. Rdd8 {[%clk 0:02:00]}  Nxg4+ {[%clk 0:00:13]} 34. Kg1 {[%clk 0:01:58]}  Rb1+ {[%clk 0:00:13]} 35. Bf1 {[%clk 0:01:59]}  Ne3 {[%clk 0:00:13]} 36. Re8+ {[%clk 0:01:51]}  Kf6 {[%clk 0:00:13]} 37. Rh8 {[%clk 0:01:35]} 1-0


[Site "https://www.chess.com"]

[Event "Late Titled Tuesday Blitz February 8 2022"]
[White "Ortiz Verdezoto, Anahi"]
[Black "Balint, Vilmos"]
[WhiteFideId "3614581"]
[BlackFideId "718050"]
[WhiteElo "1785"]
[BlackElo "2059"]
[Result "0-1"]
[Round "11"]
[TimeControl "180+1"]
[Date "2022.02.09"]
[WhiteClock "0:00:26"]
[BlackClock "0:00:44"]

1. d4 {[%clk 0:03:00]}  Nf6 {[%clk 0:02:59]} 2. c4 {[%clk 0:03:00]}  e6 {[%clk 0:02:59]} 3. Nc3 {[%clk 0:03:00]}  Bb4 {[%clk 0:03:00]} 4. e3 {[%clk 0:03:01]}  d5 {[%clk 0:02:59]} 5. Bd3 {[%clk 0:03:00]}  O-O {[%clk 0:02:59]} 6. cxd5 {[%clk 0:02:59]}  Nxd5 {[%clk 0:02:52]} 7. Ne2 {[%clk 0:02:59]}  c5 {[%clk 0:02:44]} 8. O-O {[%clk 0:02:58]}  cxd4 {[%clk 0:02:36]} 9. exd4 {[%clk 0:02:57]}  Nc6 {[%clk 0:02:36]} 10. Bd2 {[%clk 0:02:31]}  Nce7 {[%clk 0:02:33]} 11. Rc1 {[%clk 0:02:29]}  Bd7 {[%clk 0:02:33]} 12. Qc2 {[%clk 0:02:21]}  h6 {[%clk 0:02:25]} 13. Ng3 {[%clk 0:02:21]}  Rc8 {[%clk 0:02:08]} 14. Qb1 {[%clk 0:02:16]}  Bc6 {[%clk 0:02:04]} 15. Rfd1 {[%clk 0:02:15]}  a6 {[%clk 0:01:59]} 16. a3 {[%clk 0:02:13]}  Bd6 {[%clk 0:01:59]} 17. Nce4 {[%clk 0:02:11]}  Bb8 {[%clk 0:02:00]} 18. b4 {[%clk 0:02:10]}  Ba4 {[%clk 0:01:56]} 19. Rxc8 {[%clk 0:02:08]}  Nxc8 {[%clk 0:01:57]} 20. Rc1 {[%clk 0:02:08]}  Nd6 {[%clk 0:01:57]} 21. Nc5 {[%clk 0:02:06]}  Bb5 {[%clk 0:01:53]} 22. Bh7+ {[%clk 0:02:05]}  Kh8 {[%clk 0:01:52]} 23. a4 {[%clk 0:02:05]}  Bc6 {[%clk 0:01:47]} 24. Bd3 {[%clk 0:02:03]}  Qf6 {[%clk 0:01:41]} 25. b5 {[%clk 0:01:58]}  axb5 {[%clk 0:01:40]} 26. axb5 {[%clk 0:01:59]}  Be8 {[%clk 0:01:30]} 27. Ne2 {[%clk 0:01:35]}  b6 {[%clk 0:01:16]} 28. Na6 {[%clk 0:01:29]}  Bd7 {[%clk 0:01:13]} 29. Nxb8 {[%clk 0:01:27]}  Rxb8 {[%clk 0:01:14]} 30. Qa2 {[%clk 0:01:19]}  Rc8 {[%clk 0:01:03]} 31. Rxc8+ {[%clk 0:01:17]}  Nxc8 {[%clk 0:01:04]} 32. Qa6 {[%clk 0:01:06]}  Qe7 {[%clk 0:00:59]} 33. Qb7 {[%clk 0:01:04]}  Qd6 {[%clk 0:00:57]} 34. Ng3 {[%clk 0:00:59]}  Qc7 {[%clk 0:00:57]} 35. Qa6 {[%clk 0:00:45]}  Qa7 {[%clk 0:00:54]} 36. Ne4 {[%clk 0:00:43]}  Nc7 {[%clk 0:00:50]} 37. Qxa7 {[%clk 0:00:39]}  Nxa7 {[%clk 0:00:51]} 38. Nd6 {[%clk 0:00:39]}  Naxb5 {[%clk 0:00:50]} 39. Nxf7+ {[%clk 0:00:38]}  Kg8 {[%clk 0:00:50]} 40. Ne5 {[%clk 0:00:38]}  Be8 {[%clk 0:00:50]} 41. Be3 {[%clk 0:00:38]}  Nd5 {[%clk 0:00:50]} 42. Nc4 {[%clk 0:00:38]}  Nbc3 {[%clk 0:00:49]} 43. Bd2 {[%clk 0:00:34]}  b5 {[%clk 0:00:49]} 44. Nd6 {[%clk 0:00:34]}  Bd7 {[%clk 0:00:46]} 45. Kf1 {[%clk 0:00:32]}  b4 {[%clk 0:00:46]} 46. Ke1 {[%clk 0:00:32]}  b3 {[%clk 0:00:47]} 47. Nc4 {[%clk 0:00:32]}  Bb5 {[%clk 0:00:46]} 48. Nb2 {[%clk 0:00:31]}  Bxd3 {[%clk 0:00:45]} 49. Nxd3 {[%clk 0:00:32]}  Nb4 {[%clk 0:00:44]} 50. Bxc3 {[%clk 0:00:31]}  Nxd3+ {[%clk 0:00:44]} 51. Kd2 {[%clk 0:00:26]}  b2 {[%clk 0:00:44]} 0-1


[Site "https://www.chess.com"]

[Event "Late Titled Tuesday Blitz February 8 2022"]
[White "P., Komal Kishore"]
[Black "Golubovskis, Maksims"]
[WhiteFideId "5016703"]
[BlackFideId "11608528"]
[WhiteElo "2037"]
[BlackElo "2066"]
[Result "1-0"]
[Round "11"]
[TimeControl "180+1"]
[Date "2022.02.09"]
[WhiteClock "0:00:25"]
[BlackClock "0:00:01"]

1. e4 {[%clk 0:02:59]}  c5 {[%clk 0:02:59]} 2. Nf3 {[%clk 0:02:58]}  d6 {[%clk 0:02:58]} 3. Bb5+ {[%clk 0:02:57]}  Nd7 {[%clk 0:02:58]} 4. O-O {[%clk 0:02:52]}  a6 {[%clk 0:02:23]} 5. Be2 {[%clk 0:02:45]}  Ngf6 {[%clk 0:02:22]} 6. d3 {[%clk 0:02:41]}  e6 {[%clk 0:02:19]} 7. c3 {[%clk 0:02:41]}  b5 {[%clk 0:02:15]} 8. a4 {[%clk 0:02:40]}  Bb7 {[%clk 0:02:10]} 9. Qc2 {[%clk 0:02:39]}  Be7 {[%clk 0:02:09]} 10. Nbd2 {[%clk 0:02:36]}  O-O {[%clk 0:02:03]} 11. Re1 {[%clk 0:02:35]}  Qc7 {[%clk 0:01:48]} 12. Nf1 {[%clk 0:02:33]}  d5 {[%clk 0:01:44]} 13. Ng3 {[%clk 0:02:28]}  dxe4 {[%clk 0:01:38]} 14. dxe4 {[%clk 0:02:27]}  Ne5 {[%clk 0:01:25]} 15. axb5 {[%clk 0:02:19]}  axb5 {[%clk 0:01:17]} 16. Rxa8 {[%clk 0:02:17]}  Rxa8 {[%clk 0:01:16]} 17. Bxb5 {[%clk 0:02:14]}  Bd6 {[%clk 0:00:55]} 18. Be2 {[%clk 0:01:58]}  Neg4 {[%clk 0:00:47]} 19. Bg5 {[%clk 0:01:52]}  Bxg3 {[%clk 0:00:42]} 20. hxg3 {[%clk 0:01:49]}  Nxe4 {[%clk 0:00:36]} 21. Bf4 {[%clk 0:01:34]}  Qb6 {[%clk 0:00:27]} 22. Bd3 {[%clk 0:01:31]}  Nexf2 {[%clk 0:00:19]} 23. Bxh7+ {[%clk 0:01:30]}  Kh8 {[%clk 0:00:19]} 24. c4 {[%clk 0:01:26]}  Ba6 {[%clk 0:00:17]} 25. b3 {[%clk 0:01:24]}  Rd8 {[%clk 0:00:16]} 26. Ne5 {[%clk 0:00:48]}  Qa5 {[%clk 0:00:15]} 27. Rc1 {[%clk 0:00:33]}  Rf8 {[%clk 0:00:03]} 28. Nxg4 {[%clk 0:00:30]}  Nxg4 {[%clk 0:00:02]} 29. Be4 {[%clk 0:00:28]}  Nf6 {[%clk 0:00:02]} 30. Bf3 {[%clk 0:00:27]}  Rd8 {[%clk 0:00:02]} 31. Rd1 {[%clk 0:00:25]}  Rxd1+ {[%clk 0:00:01]} 32. Qxd1 {[%clk 0:00:25]} 1-0


[Site "https://www.chess.com"]

[Event "Late Titled Tuesday Blitz February 8 2022"]
[White "Pakleza, Zbigniew"]
[Black "Kamsky, Gata"]
[WhiteFideId "1119290"]
[BlackFideId "2000024"]
[WhiteElo "2467"]
[BlackElo "2645"]
[Result "1/2-1/2"]
[Round "11"]
[TimeControl "180+1"]
[Date "2022.02.08"]
[WhiteClock "0:01:55"]
[BlackClock "0:01:35"]

1. d4 {[%clk 0:03:00]}  Nf6 {[%clk 0:02:57]} 2. Nf3 {[%clk 0:02:58]}  d5 {[%clk 0:02:55]} 3. Bf4 {[%clk 0:02:58]}  c5 {[%clk 0:02:54]} 4. c3 {[%clk 0:02:59]}  e6 {[%clk 0:02:47]} 5. e3 {[%clk 0:02:56]}  Nc6 {[%clk 0:02:45]} 6. Nbd2 {[%clk 0:02:54]}  cxd4 {[%clk 0:02:45]} 7. cxd4 {[%clk 0:02:54]}  Bd6 {[%clk 0:02:43]} 8. Bg3 {[%clk 0:02:53]}  Bxg3 {[%clk 0:02:41]} 9. hxg3 {[%clk 0:02:54]}  Qd6 {[%clk 0:02:35]} 10. Bd3 {[%clk 0:02:39]}  h6 {[%clk 0:02:34]} 11. O-O {[%clk 0:02:38]}  O-O {[%clk 0:02:33]} 12. Qb3 {[%clk 0:02:27]}  Bd7 {[%clk 0:02:31]} 13. Rfc1 {[%clk 0:02:24]}  Rfc8 {[%clk 0:02:29]} 14. a3 {[%clk 0:02:20]}  Rc7 {[%clk 0:02:25]} 15. Rc3 {[%clk 0:02:13]}  Rac8 {[%clk 0:02:20]} 16. Rac1 {[%clk 0:02:07]}  Ne7 {[%clk 0:01:57]} 17. Ne5 {[%clk 0:01:55]}  Rxc3 {[%clk 0:01:53]} 18. Rxc3 {[%clk 0:01:56]}  Rxc3 {[%clk 0:01:51]} 19. Qxc3 {[%clk 0:01:55]}  b6 {[%clk 0:01:35]} 1/2-1/2


[Site "https://www.chess.com"]

[Event "Late Titled Tuesday Blitz February 8 2022"]
[White "Pavlidou, Ekaterini"]
[Black "Karttunen, Mika"]
[WhiteFideId "4213262"]
[BlackFideId "502081"]
[WhiteElo "2127"]
[BlackElo "2343"]
[Result "0-1"]
[Round "11"]
[TimeControl "180+1"]
[Date "2022.02.09"]
[WhiteClock "0:00:06"]
[BlackClock "0:00:05"]

1. d4 {[%clk 0:03:00]}  Nf6 {[%clk 0:02:59]} 2. c4 {[%clk 0:03:01]}  g6 {[%clk 0:02:59]} 3. Nc3 {[%clk 0:03:00]}  c5 {[%clk 0:02:59]} 4. d5 {[%clk 0:03:00]}  Bg7 {[%clk 0:02:50]} 5. e4 {[%clk 0:03:00]}  d6 {[%clk 0:02:51]} 6. h3 {[%clk 0:02:53]}  O-O {[%clk 0:02:50]} 7. Bd3 {[%clk 0:02:53]}  e6 {[%clk 0:02:50]} 8. Nge2 {[%clk 0:02:52]}  exd5 {[%clk 0:02:50]} 9. exd5 {[%clk 0:02:52]}  Nbd7 {[%clk 0:02:46]} 10. f4 {[%clk 0:02:51]}  Nh5 {[%clk 0:02:28]} 11. O-O {[%clk 0:02:49]}  f5 {[%clk 0:02:28]} 12. Be3 {[%clk 0:02:41]}  Re8 {[%clk 0:01:57]} 13. Bf2 {[%clk 0:02:41]}  Ndf6 {[%clk 0:01:57]} 14. Qc2 {[%clk 0:02:39]}  Bd7 {[%clk 0:01:57]} 15. a4 {[%clk 0:02:38]}  Qa5 {[%clk 0:01:56]} 16. Rae1 {[%clk 0:02:36]}  a6 {[%clk 0:01:55]} 17. Bh4 {[%clk 0:02:26]}  Re3 {[%clk 0:01:28]} 18. Nc1 {[%clk 0:02:18]}  Rae8 {[%clk 0:01:14]} 19. Qd2 {[%clk 0:02:12]}  Rxe1 {[%clk 0:00:46]} 20. Rxe1 {[%clk 0:02:12]}  Rxe1+ {[%clk 0:00:44]} 21. Bxe1 {[%clk 0:02:10]}  Bxa4 {[%clk 0:00:34]} 22. Qe2 {[%clk 0:01:57]}  Bd7 {[%clk 0:00:25]} 23. Qe7 {[%clk 0:01:47]}  Bf8 {[%clk 0:00:25]} 24. Qe3 {[%clk 0:01:45]}  Qd8 {[%clk 0:00:23]} 25. Bh4 {[%clk 0:01:43]}  Qe8 {[%clk 0:00:21]} 26. Qf3 {[%clk 0:01:34]}  Bh6 {[%clk 0:00:19]} 27. N1e2 {[%clk 0:01:32]}  Kg7 {[%clk 0:00:14]} 28. Bg5 {[%clk 0:01:27]}  b5 {[%clk 0:00:13]} 29. Nd1 {[%clk 0:01:08]}  b4 {[%clk 0:00:13]} 30. Ne3 {[%clk 0:01:07]}  Qc8 {[%clk 0:00:09]} 31. b3 {[%clk 0:00:53]}  a5 {[%clk 0:00:10]} 32. Nc1 {[%clk 0:00:45]}  Qe8 {[%clk 0:00:09]} 33. g4 {[%clk 0:00:39]}  fxg4 {[%clk 0:00:09]} 34. hxg4 {[%clk 0:00:39]}  Nxg4 {[%clk 0:00:08]} 35. Nxg4 {[%clk 0:00:35]}  Qe1+ {[%clk 0:00:08]} 36. Kg2 {[%clk 0:00:31]}  Qxc1 {[%clk 0:00:08]} 37. Bxh6+ {[%clk 0:00:30]}  Kf7 {[%clk 0:00:07]} 38. f5 {[%clk 0:00:27]}  Qb2+ {[%clk 0:00:05]} 39. Kh3 {[%clk 0:00:23]}  Nf6 {[%clk 0:00:02]} 40. fxg6+ {[%clk 0:00:21]}  hxg6 {[%clk 0:00:02]} 41. Bxg6+ {[%clk 0:00:14]}  Kxg6 {[%clk 0:00:02]} 42. Qd3+ {[%clk 0:00:14]}  Bf5 {[%clk 0:00:02]} 43. Qe3 {[%clk 0:00:08]}  Bxg4+ {[%clk 0:00:02]} 44. Kg3 {[%clk 0:00:07]}  Qe5+ {[%clk 0:00:03]} 45. Qxe5 {[%clk 0:00:06]}  dxe5 {[%clk 0:00:04]} 46. d6 {[%clk 0:00:06]}  Bf5 {[%clk 0:00:04]} 47. Bf8 {[%clk 0:00:06]}  Nd7 {[%clk 0:00:04]} 48. Be7 {[%clk 0:00:06]}  a4 {[%clk 0:00:05]} 49. Kf3 {[%clk 0:00:06]}  axb3 {[%clk 0:00:05]} 0-1


[Site "https://www.chess.com"]

[Event "Late Titled Tuesday Blitz February 8 2022"]
[White "Pranav, V"]
[Black "Mladenovic, Stefan"]
[WhiteFideId "25060783"]
[BlackFideId "942227"]
[WhiteElo "2349"]
[BlackElo "2355"]
[Result "1-0"]
[Round "11"]
[TimeControl "180+1"]
[Date "2022.02.08"]
[WhiteClock "0:00:36"]
[BlackClock "0:00:02"]

1. e4 {[%clk 0:03:00]}  c5 {[%clk 0:03:00]} 2. Nf3 {[%clk 0:03:00]}  d6 {[%clk 0:03:00]} 3. c3 {[%clk 0:02:59]}  Nf6 {[%clk 0:03:00]} 4. Be2 {[%clk 0:02:59]}  g6 {[%clk 0:03:00]} 5. O-O {[%clk 0:02:59]}  Bg7 {[%clk 0:03:01]} 6. Bb5+ {[%clk 0:03:00]}  Bd7 {[%clk 0:03:00]} 7. Bxd7+ {[%clk 0:03:00]}  Qxd7 {[%clk 0:02:59]} 8. Re1 {[%clk 0:03:01]}  Nc6 {[%clk 0:02:58]} 9. d4 {[%clk 0:03:02]}  O-O {[%clk 0:02:49]} 10. d5 {[%clk 0:03:01]}  Nd8 {[%clk 0:02:35]} 11. c4 {[%clk 0:02:56]}  b5 {[%clk 0:02:34]} 12. cxb5 {[%clk 0:02:55]}  Qxb5 {[%clk 0:02:33]} 13. Nc3 {[%clk 0:02:55]}  Qd7 {[%clk 0:02:33]} 14. e5 {[%clk 0:02:55]}  dxe5 {[%clk 0:02:32]} 15. Nxe5 {[%clk 0:02:56]}  Qf5 {[%clk 0:02:24]} 16. h3 {[%clk 0:02:42]}  h5 {[%clk 0:02:17]} 17. b3 {[%clk 0:02:30]}  Ne4 {[%clk 0:02:05]} 18. Nxe4 {[%clk 0:02:21]}  Bxe5 {[%clk 0:02:02]} 19. Bh6 {[%clk 0:02:15]}  Re8 {[%clk 0:01:43]} 20. Rc1 {[%clk 0:02:10]}  Bd4 {[%clk 0:01:40]} 21. Rc2 {[%clk 0:02:07]}  Nb7 {[%clk 0:01:39]} 22. Rce2 {[%clk 0:02:01]}  Kh7 {[%clk 0:01:18]} 23. Bg5 {[%clk 0:01:36]}  Qxd5 {[%clk 0:01:10]} 24. Bxe7 {[%clk 0:01:36]}  Qf5 {[%clk 0:00:58]} 25. Bh4 {[%clk 0:01:24]}  Kg7 {[%clk 0:00:33]} 26. Qc1 {[%clk 0:01:08]}  Rad8 {[%clk 0:00:18]} 27. Ng3 {[%clk 0:00:59]}  Qd7 {[%clk 0:00:10]} 28. Re7 {[%clk 0:00:42]}  Rxe7 {[%clk 0:00:10]} 29. Rxe7 {[%clk 0:00:43]}  Qd5 {[%clk 0:00:09]} 30. Rxb7 {[%clk 0:00:41]}  Re8 {[%clk 0:00:06]} 31. Re7 {[%clk 0:00:41]}  Bxf2+ {[%clk 0:00:04]} 32. Kxf2 {[%clk 0:00:38]}  Qd4+ {[%clk 0:00:05]} 33. Qe3 {[%clk 0:00:37]}  Qb2+ {[%clk 0:00:04]} 34. Ne2 {[%clk 0:00:36]}  Rxe7 {[%clk 0:00:04]} 35. Bxe7 {[%clk 0:00:37]}  c4 {[%clk 0:00:02]} 36. Bc5 {[%clk 0:00:38]}  Qxa2 {[%clk 0:00:02]} 37. Bd4+ {[%clk 0:00:38]}  Kh7 {[%clk 0:00:02]} 38. Qe5 {[%clk 0:00:38]}  Kh6 {[%clk 0:00:01]} 39. Qh8+ {[%clk 0:00:36]}  Kg5 {[%clk 0:00:02]} 40. h4+ {[%clk 0:00:37]}  Kg4 {[%clk 0:00:02]} 41. Qf6 {[%clk 0:00:36]} 1-0


[Site "https://www.chess.com"]

[Event "Late Titled Tuesday Blitz February 8 2022"]
[White "Punin, Andrii"]
[Black "Adewumi, Tanitoluwa"]
[WhiteFideId "14112639"]
[BlackFideId "30966396"]
[WhiteElo "2357"]
[BlackElo "2485"]
[Result "1-0"]
[Round "11"]
[TimeControl "180+1"]
[Date "2022.02.08"]
[WhiteClock "0:00:29"]
[BlackClock "0:00:03"]

1. e4 {[%clk 0:03:00]}  g6 {[%clk 0:02:48]} 2. d4 {[%clk 0:02:59]}  Bg7 {[%clk 0:02:48]} 3. Nf3 {[%clk 0:02:58]}  c6 {[%clk 0:02:47]} 4. h3 {[%clk 0:02:56]}  d5 {[%clk 0:02:48]} 5. Nbd2 {[%clk 0:02:56]}  dxe4 {[%clk 0:02:46]} 6. Nxe4 {[%clk 0:02:56]}  Nf6 {[%clk 0:02:47]} 7. Nxf6+ {[%clk 0:02:53]}  exf6 {[%clk 0:02:47]} 8. Bc4 {[%clk 0:02:48]}  O-O {[%clk 0:02:47]} 9. O-O {[%clk 0:02:48]}  Nd7 {[%clk 0:02:47]} 10. Re1 {[%clk 0:02:47]}  Nb6 {[%clk 0:02:48]} 11. Bb3 {[%clk 0:02:47]}  a5 {[%clk 0:02:49]} 12. a4 {[%clk 0:02:38]}  Re8 {[%clk 0:02:41]} 13. Bd2 {[%clk 0:02:33]}  Bf5 {[%clk 0:02:28]} 14. Rxe8+ {[%clk 0:02:28]}  Qxe8 {[%clk 0:02:28]} 15. Qe1 {[%clk 0:02:28]}  Qxe1+ {[%clk 0:02:16]} 16. Rxe1 {[%clk 0:02:27]}  Bf8 {[%clk 0:02:13]} 17. c3 {[%clk 0:02:21]}  Bd6 {[%clk 0:01:46]} 18. h4 {[%clk 0:02:12]}  h5 {[%clk 0:01:41]} 19. Nh2 {[%clk 0:02:11]}  Bd3 {[%clk 0:01:31]} 20. Nf1 {[%clk 0:01:56]}  Nc4 {[%clk 0:01:16]} 21. Bc1 {[%clk 0:01:55]}  b5 {[%clk 0:01:17]} 22. Ne3 {[%clk 0:01:36]}  Re8 {[%clk 0:01:01]} 23. g3 {[%clk 0:01:24]}  f5 {[%clk 0:00:29]} 24. Ng2 {[%clk 0:01:23]}  Rxe1+ {[%clk 0:00:27]} 25. Nxe1 {[%clk 0:01:24]}  Be4 {[%clk 0:00:27]} 26. Bxc4 {[%clk 0:01:03]}  bxc4 {[%clk 0:00:26]} 27. Bg5 {[%clk 0:00:55]}  Bc7 {[%clk 0:00:18]} 28. f3 {[%clk 0:00:55]}  Bd5 {[%clk 0:00:15]} 29. Kf2 {[%clk 0:00:54]}  Kg7 {[%clk 0:00:13]} 30. Ng2 {[%clk 0:00:53]}  f6 {[%clk 0:00:13]} 31. Bf4 {[%clk 0:00:53]}  Bxf4 {[%clk 0:00:08]} 32. Nxf4 {[%clk 0:00:53]}  Kf7 {[%clk 0:00:09]} 33. Ke3 {[%clk 0:00:44]}  Kg7 {[%clk 0:00:09]} 34. Nxd5 {[%clk 0:00:39]}  cxd5 {[%clk 0:00:08]} 35. f4 {[%clk 0:00:39]}  Kf7 {[%clk 0:00:08]} 36. Kd2 {[%clk 0:00:39]}  Ke7 {[%clk 0:00:08]} 37. Kc2 {[%clk 0:00:39]}  g5 {[%clk 0:00:04]} 38. b3 {[%clk 0:00:38]}  gxf4 {[%clk 0:00:02]} 39. gxf4 {[%clk 0:00:37]}  Kd7 {[%clk 0:00:03]} 40. b4 {[%clk 0:00:29]} 1-0


[Site "https://www.chess.com"]

[Event "Late Titled Tuesday Blitz February 8 2022"]
[White "Quirke, Jeffrey"]
[Black "Marcziter, Dmitrii"]
[WhiteFideId "2013029"]
[BlackFideId "13900765"]
[WhiteElo "2269"]
[BlackElo "2155"]
[Result "0-1"]
[Round "11"]
[TimeControl "180+1"]
[Date "2022.02.09"]
[WhiteClock "0:00:19"]
[BlackClock "0:00:50"]

1. d4 {[%clk 0:03:00]}  d5 {[%clk 0:02:58]} 2. c4 {[%clk 0:03:00]}  e6 {[%clk 0:02:59]} 3. Nc3 {[%clk 0:03:01]}  c5 {[%clk 0:02:59]} 4. cxd5 {[%clk 0:03:01]}  exd5 {[%clk 0:03:00]} 5. Nf3 {[%clk 0:03:01]}  Nc6 {[%clk 0:03:01]} 6. dxc5 {[%clk 0:03:01]}  d4 {[%clk 0:02:58]} 7. Na4 {[%clk 0:03:01]}  Bf5 {[%clk 0:02:58]} 8. e3 {[%clk 0:02:43]}  d3 {[%clk 0:02:55]} 9. Bd2 {[%clk 0:02:37]}  Qd7 {[%clk 0:02:46]} 10. Bc3 {[%clk 0:02:36]}  Nf6 {[%clk 0:02:41]} 11. Nd4 {[%clk 0:02:36]}  Nxd4 {[%clk 0:02:36]} 12. Bxd4 {[%clk 0:02:36]}  d2+ {[%clk 0:02:31]} 13. Kxd2 {[%clk 0:02:30]}  Be7 {[%clk 0:02:24]} 14. Bc4 {[%clk 0:02:16]}  O-O {[%clk 0:02:21]} 15. Ke2 {[%clk 0:02:10]}  Qc6 {[%clk 0:02:12]} 16. f3 {[%clk 0:02:06]}  b5 {[%clk 0:02:12]} 17. Qb3 {[%clk 0:01:47]}  bxc4 {[%clk 0:02:08]} 18. Qxc4 {[%clk 0:01:47]}  Be6 {[%clk 0:02:05]} 19. Qc2 {[%clk 0:01:46]}  Nd5 {[%clk 0:01:59]} 20. a3 {[%clk 0:01:43]}  Rad8 {[%clk 0:01:56]} 21. b4 {[%clk 0:01:36]}  Qb5+ {[%clk 0:01:54]} 22. Kf2 {[%clk 0:01:36]}  Nf4 {[%clk 0:01:50]} 23. exf4 {[%clk 0:01:12]}  Rxd4 {[%clk 0:01:48]} 24. Rad1 {[%clk 0:01:12]}  Rfd8 {[%clk 0:01:47]} 25. Rxd4 {[%clk 0:01:11]}  Rxd4 {[%clk 0:01:46]} 26. Rd1 {[%clk 0:01:12]}  Bf6 {[%clk 0:01:46]} 27. Rxd4 {[%clk 0:01:03]}  Bxd4+ {[%clk 0:01:45]} 28. Kg3 {[%clk 0:01:04]}  g5 {[%clk 0:01:40]} 29. fxg5 {[%clk 0:00:59]}  Qc6 {[%clk 0:01:21]} 30. Nc3 {[%clk 0:00:47]}  a5 {[%clk 0:01:13]} 31. Ne4 {[%clk 0:00:46]}  axb4 {[%clk 0:01:12]} 32. axb4 {[%clk 0:00:47]}  Qd5 {[%clk 0:01:10]} 33. h4 {[%clk 0:00:38]}  Bf5 {[%clk 0:01:01]} 34. Qe2 {[%clk 0:00:34]}  Qe5+ {[%clk 0:00:58]} 35. f4 {[%clk 0:00:26]}  Qxe4 {[%clk 0:00:58]} 36. Qxe4 {[%clk 0:00:26]}  Bxe4 {[%clk 0:00:58]} 37. Kg4 {[%clk 0:00:25]}  f5+ {[%clk 0:00:54]} 38. gxf6 {[%clk 0:00:25]}  Kf7 {[%clk 0:00:53]} 39. f5 {[%clk 0:00:20]}  Bxg2 {[%clk 0:00:51]} 40. Kf4 {[%clk 0:00:19]}  Bc6 {[%clk 0:00:50]} 0-1


[Site "https://www.chess.com"]